fUSD/lending_fUSD_20240730
["ID","MTS","AMOUNT","RATE_DAILY","PERIOD"]
[333674708,1722340716429,-194.70869507,0.00010999,2]
[333674709,1722340716451,-500.0,0.00010999,2]
[333674710,1722340716473,-500.0,0.00010999,2]
[333674711,1722340716498,-500.0,0.00010999,2]
[333674712,1722340716520,-500.0,0.00010999,2]
[333674713,1722340716543,-500.0,0.00010999,2]
[333674714,1722340716569,-220.6359425,0.00010999,2]
[333674715,1722340716592,-500.0,0.00010999,2]
[333674716,1722340716618,-500.0,0.00010999,2]
[333674717,1722340716644,-500.0,0.00010999,2]
[333674718,1722340716668,-500.0,0.00010999,2]
[333674719,1722340716692,-500.0,0.00010999,2]
[333674720,1722340716719,-500.0,0.00010999,2]
[333674721,1722340716741,-500.0,0.00010999,2]
[333674722,1722340716763,-500.0,0.00010999,2]
[333674723,1722340716787,-500.0,0.00010999,2]
[333674724,1722340716809,-500.0,0.00010999,2]
[333674725,1722340716833,-500.0,0.00010999,2]
[333674726,1722340716857,-500.0,0.00010999,2]
[333674727,1722340716881,-500.0,0.00010999,2]
[333674728,1722340716907,-500.0,0.00010999,2]
[333674729,1722340716929,-500.0,0.00010999,2]
[333674730,1722340716954,-500.0,0.00010999,2]
[333674731,1722340716978,-500.0,0.00010999,2]
[333674732,1722340717001,-500.0,0.00010999,2]
[333674733,1722340717024,-322.82863348,0.00010999,2]
[333674734,1722340717049,-499.9481,0.00010999,2]
[333674735,1722340717071,-866.4,0.00010999,2]
[333674736,1722340717094,-866.4,0.00010999,2]
[333674737,1722340717115,-866.4,0.00010999,2]
[333674738,1722340717138,-866.4,0.00010999,2]
[333674739,1722340717161,-866.4,0.00010999,2]
[333674740,1722340717183,-866.4,0.00010999,2]
[333674741,1722340717206,-866.4,0.00010999,2]
[333674742,1722340717227,-866.4,0.00010999,2]
[333674743,1722340717247,-866.4,0.00010999,2]
[333674744,1722340717268,-866.4,0.00010999,2]
[333674745,1722340717290,-866.4,0.00010999,2]
[333674746,1722340717313,-866.4,0.00010999,2]
[333674747,1722340717335,-866.4,0.00010999,2]
[333674748,1722340717356,-866.4,0.00010999,2]
[333674749,1722340717378,-866.4,0.00010999,2]
[333674750,1722340717400,-866.4,0.00010999,2]
[333674751,1722340717421,-866.4,0.00010999,2]
[333674752,1722340717443,-866.4,0.00010999,2]
[333674753,1722340717465,-866.4,0.00010999,2]
[333674754,1722340717487,-866.4,0.00010999,2]
[333674755,1722340717509,-866.4,0.00010999,2]
[333674756,1722340717530,-866.4,0.00010999,2]
[333674757,1722340717552,-866.4,0.00010999,2]
[333674758,1722340717574,-866.40076031,0.00010999,2]
[333674759,1722340717596,-500.0,0.00010999,2]
[333674760,1722340717619,-260.73749051,0.00010999,2]
[333674761,1722340717640,-2009.9967,0.00010999,2]
[333674762,1722340717662,-211.40172643,0.00010999,2]
[333674763,1722340717684,-975.28865435,0.00010999,2]
[333674764,1722340717708,-1276475.917561,0.00011,2]
[333674765,1722340717731,-821590.2167451,0.00011,2]
[333674766,1722340717753,-1862433.85397641,0.00011,2]
[333674767,1722340717776,-1607568.12376002,0.00011,2]
[333674768,1722340802624,511.26,0.00027,120]
[333674771,1722341190587,179.36,0.00025,60]
[333674772,1722341209387,269.04,0.00025,60]
[333674773,1722341264357,213.17,0.00025,60]
[333674781,1722341432027,-594.67731106,8.472e-05,2]
[333674782,1722341432039,-136.38268894,8.472e-05,2]
[333674783,1722341432048,-114.97192604,9.501e-05,2]
[333674784,1722341432060,-1026.70276796,9.501e-05,2]
[333674785,1722341432069,-151.30090361,9.501e-05,2]
[333674786,1722341432079,-2000.0,9.549e-05,2]
[333674787,1722341432088,-567.08,9.597e-05,2]
[333674788,1722341432098,-819.84,9.639e-05,2]
[333674789,1722341432107,-300.0,9.709e-05,2]
[333674790,1722341432117,-10146.21708843,9.71e-05,2]
[333674791,1722341432128,-2416.0,9.71e-05,2]
[333674792,1722341432140,-3049.89,9.71e-05,2]
[333674793,1722341432155,-1284.35585131,9.71e-05,2]
[333674794,1722341432166,-876.72999162,9.71e-05,2]
[333674795,1722341432178,-2194.55656055,9.71e-05,2]
[333674796,1722341432194,-781.03258899,9.71e-05,2]
[333674797,1722341432206,-2000.0,9.71e-05,2]
[333674798,1722341432296,-506.58096069,9.71e-05,2]
[333674799,1722341432308,-644.63695841,9.71e-05,2]
[333674800,1722341432318,-289.9,9.831e-05,2]
[333674801,1722341432328,-371.5992053,0.0001,2]
[333674802,1722341432337,-1250.0,0.0001,2]
[333674803,1722341432347,-792.50922131,0.00010087,2]
[333674804,1722341432362,-7211.0,0.00010087,2]
[333674813,1722341438035,-1996.49077869,0.00010087,2]
[333674814,1722341438044,-1173.51,0.00010087,2]
[333674815,1722341438054,-186.91137478,0.00010217,2]
[333674816,1722341438063,-828.3,0.00010217,2]
[333674817,1722341438072,-178.16,0.00010223,2]
[333674818,1722341438081,-505.52,0.00010227,2]
[333674819,1722341438091,-186.91137477,0.00010311,2]
[333674820,1722341438100,-150.0,0.00010388,2]
[333674821,1722341438109,-200.0,0.00010389,2]
[333674822,1722341438118,-500.0,0.00010389,2]
[333674823,1722341438127,-382.08494338,0.00010389,2]
[333674824,1722341438138,-80.14505662,0.00010389,2]
[333674825,1722341438148,-186.91137477,0.00010406,2]
[333674826,1722341438157,-318.651243,0.00010414,2]
[333674827,1722341438168,-264.43385958,0.00010414,2]
[333674828,1722341438181,-58.31489742,0.00010414,2]
[333674829,1722341438190,-2409.76859395,0.00010473,2]
[333674865,1722341440410,-752.37140605,0.00010473,2]
[333674866,1722341440420,-186.91137477,0.000105,2]
[333674867,1722341440430,-3864.5708,0.000105,2]
[333674868,1722341440439,-331.6237,0.000105,2]
[333674869,1722341440448,-5704.68738016,0.0001059,2]
[333674870,1722341440462,-4295.95431517,0.0001059,2]
[333674871,1722341440473,-1679.40136907,0.0001059,2]
[333674872,1722341440485,-666.786,0.0001059,2]
[333674873,1722341440502,-2019.42806167,0.0001059,2]
[333674874,1722341440511,-23103.38555978,0.000106,2]
[333674976,1722341443085,-150.0,0.00010389,2]
[333674977,1722341443094,-507.39,0.000106,2]
[333674978,1722341443105,-102522.85694022,0.000106,2]
[333674979,1722341443114,-337.6875,0.000106,2]
[333674980,1722341443123,-30653.9396,0.000106,2]
[333674981,1722341443132,-2450.376,0.000106,2]
[333674982,1722341443141,-150.99,0.000106,2]
[333674983,1722341443150,-420.0,0.00010679,2]
[333674984,1722341443159,-731.06,0.00010736,2]
[333674985,1722341443168,-79663.0,0.00010781,2]
[333674986,1722341443177,-618.59012886,0.00010858,2]
[333674987,1722341443187,-618.59012883,0.00010869,2]
[333674988,1722341443197,-618.59012883,0.00010879,2]
[333674989,1722341443206,-618.59012883,0.0001089,2]
[333674990,1722341443215,-9648.60133793,0.0001089,2]
[333674991,1722341443224,-3000.0,0.0001089,2]
[333674992,1722341443233,-5335.28447855,0.00010899,2]
[333674993,1722341443242,-5335.28447848,0.00010899,2]
[333674994,1722341443252,-5335.28447848,0.00010899,2]
[333674995,1722341443261,-5335.28447848,0.00010899,2]
[333674996,1722341443270,-5335.28447848,0.00010899,2]
[333674997,1722341443279,-5335.28447848,0.00010899,2]
[333674998,1722341443288,-5335.28447848,0.00010899,2]
[333674999,1722341443297,-5335.28447848,0.00010899,2]
[333675000,1722341443306,-5335.28447848,0.00010899,2]
[333675001,1722341443316,-1286.1776,0.000109,2]
[333675002,1722341443325,-839.1135,0.000109,2]
[333675003,1722341443335,-279.9178,0.000109,2]
[333675004,1722341443346,-5335.28447848,0.000109,2]
[333675005,1722341443355,-618.59012883,0.000109,2]
[333675006,1722341443365,-20620.13716769,0.000109,2]
[333675007,1722341443374,-500.0,0.00010929,2]
[333675008,1722341443384,-500.0,0.00010937,2]
[333675010,1722341443586,-500.0,0.00010946,2]
[333675011,1722341443595,-1266.0,0.0001095,2]
[333675012,1722341443605,-433.0,0.0001095,2]
[333675013,1722341443614,-278.0,0.0001095,2]
[333675014,1722341443623,-802.0,0.0001095,2]
[333675015,1722341443632,-604.0,0.0001095,2]
[333675016,1722341443641,-359.167,0.0001095,2]
[333675017,1722341443650,-2958.0,0.0001095,2]
[333675018,1722341443659,-1995.0,0.0001095,2]
[333675019,1722341443669,-1372.893,0.0001095,2]
[333675020,1722341443678,-508.72,0.0001095,2]
[333675021,1722341443689,-320.815,0.0001095,2]
[333675022,1722341443699,-1073.0,0.0001095,2]
[333675023,1722341443708,-500.0,0.00010955,2]
[333675024,1722341443718,-255.94146036,0.00010958,2]
[333675025,1722341443727,-500.0,0.00010958,2]
[333675026,1722341443737,-500.0,0.00010958,2]
[333675027,1722341443746,-226.2280398,0.00010958,2]
[333675028,1722341443755,-500.0,0.00010958,2]
[333675029,1722341443764,-500.0,0.00010958,2]
[333675030,1722341443774,-500.0,0.00010958,2]
[333675031,1722341443783,-295.32352131,0.00010958,2]
[333675032,1722341443793,-500.0,0.00010958,2]
[333675033,1722341443803,-500.0,0.00010958,2]
[333675034,1722341443813,-485.05,0.00010958,2]
[333675035,1722341443823,-500.0,0.00010958,2]
[333675036,1722341443832,-500.0,0.00010958,2]
[333675037,1722341443843,-500.0,0.00010958,2]
[333675038,1722341443853,-500.0,0.00010958,2]
[333675039,1722341443868,-500.0,0.00010958,2]
[333675040,1722341443879,-500.0,0.00010958,2]
[333675041,1722341443888,-500.0,0.00010958,2]
[333675042,1722341443898,-500.0,0.00010958,2]
[333675043,1722341443908,-500.0,0.00010958,2]
[333675044,1722341443918,-500.0,0.00010958,2]
[333675045,1722341443928,-500.0,0.00010958,2]
[333675046,1722341443938,-500.0,0.00010958,2]
[333675047,1722341443947,-500.0,0.00010958,2]
[333675048,1722341443957,-500.0,0.00010958,2]
[333675049,1722341443967,-500.0,0.00010958,2]
[333675050,1722341443976,-500.0,0.00010958,2]
[333675051,1722341443985,-233.9,0.00010958,2]
[333675052,1722341443994,-500.0,0.00010958,2]
[333675053,1722341444004,-500.0,0.00010958,2]
[333675054,1722341444014,-500.0,0.00010958,2]
[333675055,1722341444024,-500.0,0.00010958,2]
[333675056,1722341444034,-500.0,0.00010958,2]
[333675057,1722341444043,-500.0,0.00010958,2]
[333675058,1722341444053,-500.0,0.00010958,2]
[333675059,1722341444063,-500.0,0.00010958,2]
[333675060,1722341444074,-500.0,0.00010958,2]
[333675061,1722341444084,-500.0,0.00010958,2]
[333675062,1722341444095,-629.47346863,0.00010958,2]
[333675063,1722341444104,-513.83563501,0.00010958,2]
[333675064,1722341444117,-2316.08436499,0.00010958,2]
[333675065,1722341444126,-1290.06419583,0.00010958,2]
[333675066,1722341444137,-628.210864,0.00010958,2]
[333675067,1722341444148,-880.36175698,0.00010958,2]
[333675068,1722341444167,-31.28318319,0.00010958,2]
[333675069,1722341444178,-510.6094847,0.00010958,2]
[333675070,1722341444193,-2319.3105153,0.00010958,2]
[333675071,1722341444203,-2829.92,0.00010958,2]
[333675072,1722341444212,-2829.92,0.00010958,2]
[333675073,1722341444222,-2829.92,0.00010958,2]
[333675074,1722341444232,-2829.92,0.00010958,2]
[333675075,1722341444242,-2829.92,0.00010958,2]
[333675076,1722341444252,-2829.92,0.00010958,2]
[333675077,1722341444263,-2829.92,0.00010958,2]
[333675078,1722341444273,-2829.92,0.00010958,2]
[333675079,1722341444282,-2829.92,0.00010958,2]
[333675080,1722341444291,-2829.92,0.00010958,2]
[333675081,1722341444300,-2829.92,0.00010958,2]
[333675082,1722341444309,-2829.92,0.00010958,2]
[333675083,1722341444319,-2829.92,0.00010958,2]
[333675084,1722341444328,-2829.92,0.00010958,2]
[333675085,1722341444338,-2829.92,0.00010958,2]
[333675086,1722341444349,-2829.92,0.00010958,2]
[333675087,1722341444358,-2829.92,0.00010958,2]
[333675088,1722341444368,-500.0,0.00010958,2]
[333675089,1722341444378,-2829.92,0.00010958,2]
[333675090,1722341444387,-583.73,0.00010958,2]
[333675091,1722341444396,-2829.92,0.00010958,2]
[333675092,1722341444405,-2829.92,0.00010958,2]
[333675093,1722341444415,-2829.96568799,0.00010958,2]
[333675094,1722341444424,-239.21,0.00010958,2]
[333675095,1722341444434,-557.44,0.00010958,2]
[333675096,1722341444443,-500.0,0.00010958,2]
[333675097,1722341444452,-500.0,0.00010958,2]
[333675098,1722341444462,-500.0,0.00010958,2]
[333675099,1722341444471,-500.0,0.00010958,2]
[333675100,1722341444480,-325.905,0.00010958,2]
[333675101,1722341444489,-517.97,0.00010958,2]
[333675102,1722341444498,-500.0,0.00010958,2]
[333675103,1722341444507,-500.0,0.00010958,2]
[333675104,1722341444516,-500.0,0.00010958,2]
[333675105,1722341444526,-500.0,0.00010958,2]
[333675106,1722341444535,-500.0,0.00010958,2]
[333675107,1722341444544,-500.0,0.00010958,2]
[333675108,1722341444553,-500.0,0.00010958,2]
[333675109,1722341444562,-500.0,0.00010958,2]
[333675110,1722341444572,-500.0,0.00010958,2]
[333675111,1722341444581,-500.0,0.00010958,2]
[333675112,1722341444590,-500.0,0.00010958,2]
[333675113,1722341444599,-500.0,0.00010958,2]
[333675114,1722341444608,-500.0,0.00010958,2]
[333675115,1722341444618,-500.0,0.00010958,2]
[333675116,1722341444627,-353.0093,0.00010958,2]
[333675117,1722341444636,-500.0,0.00010958,2]
[333675118,1722341444645,-500.0,0.00010958,2]
[333675119,1722341444654,-243.64,0.00010958,2]
[333675120,1722341444663,-500.0,0.00010958,2]
[333675121,1722341444673,-500.0,0.00010958,2]
[333675122,1722341444682,-500.0,0.00010958,2]
[333675123,1722341444691,-154.0234322,0.00010958,2]
[333675124,1722341444700,-500.0,0.00010958,2]
[333675125,1722341444710,-505.24850308,0.00010958,2]
[333675126,1722341444718,-500.0,0.00010958,2]
[333675127,1722341444728,-500.0,0.00010958,2]
[333675128,1722341444737,-500.0,0.00010958,2]
[333675129,1722341444746,-500.3006642,0.00010958,2]
[333675130,1722341444755,-500.0,0.00010958,2]
[333675131,1722341444765,-500.0,0.00010958,2]
[333675132,1722341444774,-500.0,0.00010958,2]
[333675133,1722341444784,-322.56152394,0.00010958,2]
[333675134,1722341444793,-500.0,0.00010958,2]
[333675135,1722341444802,-500.0,0.00010958,2]
[333675136,1722341444812,-500.0,0.00010958,2]
[333675137,1722341444821,-500.0,0.00010958,2]
[333675138,1722341444830,-500.0,0.00010958,2]
[333675139,1722341444840,-492.69489206,0.00010958,2]
[333675140,1722341444850,-500.0,0.00010958,2]
[333675141,1722341444860,-500.0,0.00010958,2]
[333675142,1722341444872,-535.4759653,0.00010958,2]
[333675143,1722341444881,-500.0,0.00010958,2]
[333675144,1722341444890,-500.0,0.00010958,2]
[333675145,1722341444900,-500.0,0.00010958,2]
[333675146,1722341444910,-500.0,0.00010958,2]
[333675147,1722341444919,-500.0,0.00010958,2]
[333675148,1722341444929,-773.08,0.00010958,2]
[333675149,1722341444939,-773.08,0.00010958,2]
[333675150,1722341444949,-500.0,0.00010958,2]
[333675151,1722341444959,-773.08,0.00010958,2]
[333675152,1722341444969,-773.08,0.00010958,2]
[333675153,1722341444979,-773.08,0.00010958,2]
[333675154,1722341444989,-773.08,0.00010958,2]
[333675155,1722341444999,-773.08,0.00010958,2]
[333675156,1722341445009,-773.08,0.00010958,2]
[333675157,1722341445019,-773.08,0.00010958,2]
[333675158,1722341445029,-773.08,0.00010958,2]
[333675159,1722341445038,-773.08,0.00010958,2]
[333675160,1722341445048,-773.08,0.00010958,2]
[333675161,1722341445058,-773.08,0.00010958,2]
[333675162,1722341445067,-773.08,0.00010958,2]
[333675163,1722341445076,-500.0,0.00010958,2]
[333675164,1722341445086,-773.08,0.00010958,2]
[333675165,1722341445095,-773.08,0.00010958,2]
[333675166,1722341445105,-773.08,0.00010958,2]
[333675167,1722341445115,-773.08,0.00010958,2]
[333675168,1722341445124,-773.08,0.00010958,2]
[333675169,1722341445133,-505.40289568,0.00010958,2]
[333675170,1722341445143,-773.08,0.00010958,2]
[333675171,1722341445153,-773.08,0.00010958,2]
[333675172,1722341445162,-500.0,0.00010958,2]
[333675173,1722341445171,-773.08,0.00010958,2]
[333675174,1722341445181,-500.0,0.00010958,2]
[333675175,1722341445191,-258.24983503,0.00010958,2]
[333675176,1722341445200,-773.08,0.00010958,2]
[333675177,1722341445210,-500.0,0.00010958,2]
[333675178,1722341445219,-773.16,0.00010958,2]
[333675179,1722341445228,-500.0,0.00010958,2]
[333675180,1722341445237,-500.0,0.00010958,2]
[333675181,1722341445247,-500.0,0.00010958,2]
[333675182,1722341445256,-500.0,0.00010958,2]
[333675183,1722341445266,-162.94297599,0.00010958,2]
[333675184,1722341445275,-500.0,0.00010958,2]
[333675185,1722341445285,-500.0,0.00010958,2]
[333675186,1722341445295,-500.0,0.00010958,2]
[333675187,1722341445304,-500.0,0.00010958,2]
[333675188,1722341445314,-500.0,0.00010958,2]
[333675189,1722341445323,-500.0,0.00010958,2]
[333675190,1722341445332,-501.68596186,0.00010958,2]
[333675191,1722341445341,-500.0,0.00010958,2]
[333675192,1722341445350,-500.0,0.00010958,2]
[333675193,1722341445359,-500.0,0.00010958,2]
[333675194,1722341445368,-500.0,0.00010958,2]
[333675195,1722341445377,-500.0,0.00010958,2]
[333675196,1722341445386,-500.0,0.00010958,2]
[333675197,1722341445395,-500.0,0.00010958,2]
[333675198,1722341445404,-500.0,0.00010958,2]
[333675199,1722341445414,-500.0,0.00010958,2]
[333675200,1722341445423,-500.0,0.00010958,2]
[333675201,1722341445433,-500.0,0.00010958,2]
[333675202,1722341445442,-396.83,0.00010958,2]
[333675203,1722341445452,-501.96262989,0.00010958,2]
[333675204,1722341445462,-500.0,0.00010958,2]
[333675205,1722341445472,-379.24,0.00010958,2]
[333675206,1722341445482,-570.47074753,0.00010958,2]
[333675207,1722341445492,-506.61965219,0.00010958,2]
[333675208,1722341445501,-500.0,0.00010958,2]
[333675209,1722341445511,-500.0,0.00010958,2]
[333675210,1722341445520,-500.0,0.00010958,2]
[333675211,1722341445530,-500.0,0.00010958,2]
[333675212,1722341445539,-500.0,0.00010958,2]
[333675213,1722341445549,-500.0,0.00010958,2]
[333675214,1722341445559,-500.0,0.00010958,2]
[333675215,1722341445569,-500.0,0.00010958,2]
[333675216,1722341445578,-500.0,0.00010958,2]
[333675217,1722341445588,-500.0,0.00010958,2]
[333675218,1722341445597,-500.0,0.00010958,2]
[333675219,1722341445606,-500.0,0.00010958,2]
[333675220,1722341445616,-500.0,0.00010958,2]
[333675221,1722341445625,-500.0,0.00010958,2]
[333675222,1722341445635,-385.32007589,0.00010958,2]
[333675223,1722341445645,-500.0,0.00010958,2]
[333675224,1722341445654,-506.1603998,0.00010958,2]
[333675225,1722341445663,-500.0,0.00010958,2]
[333675226,1722341445673,-500.0,0.00010958,2]
[333675227,1722341445683,-501.48338811,0.00010958,2]
[333675228,1722341445692,-500.0,0.00010958,2]
[333675229,1722341445702,-500.0,0.00010958,2]
[333675230,1722341445712,-500.0,0.00010958,2]
[333675231,1722341445722,-500.0,0.00010958,2]
[333675232,1722341445732,-500.0,0.00010958,2]
[333675233,1722341445742,-500.0,0.00010958,2]
[333675234,1722341445751,-500.0,0.00010958,2]
[333675235,1722341445760,-500.0,0.00010958,2]
[333675236,1722341445770,-500.0,0.00010958,2]
[333675237,1722341445780,-500.0,0.00010958,2]
[333675238,1722341445789,-506.07582725,0.00010958,2]
[333675239,1722341445798,-510.21140469,0.00010958,2]
[333675240,1722341445808,-7045.39,0.00010958,2]
[333675241,1722341445817,-500.0,0.00010958,2]
[333675242,1722341445827,-594.67731106,0.00010958,2]
[333675243,1722341445836,-500.0,0.00010958,2]
[333675244,1722341445847,-246.66854677,0.00010958,2]
[333675245,1722341445857,-500.0,0.00010958,2]
[333675246,1722341445869,-500.0,0.00010958,2]
[333675247,1722341445878,-500.0,0.00010958,2]
[333675248,1722341445888,-500.0,0.00010958,2]
[333675249,1722341445898,-500.0,0.00010958,2]
[333675250,1722341445908,-500.0,0.00010958,2]
[333675251,1722341445917,-500.0,0.00010958,2]
[333675252,1722341445927,-500.0,0.00010958,2]
[333675253,1722341445939,-500.0,0.00010958,2]
[333675254,1722341445948,-500.0,0.00010958,2]
[333675255,1722341445958,-500.0,0.00010958,2]
[333675256,1722341445967,-500.0,0.00010958,2]
[333675257,1722341445977,-500.0,0.00010958,2]
[333675258,1722341445986,-500.0,0.00010958,2]
[333675259,1722341445995,-500.0,0.00010958,2]
[333675260,1722341446005,-500.0,0.00010958,2]
[333675261,1722341446015,-500.0,0.00010958,2]
[333675262,1722341446024,-454.20832584,0.00010958,2]
[333675263,1722341446034,-636.03,0.00010958,2]
[333675264,1722341446043,-500.0,0.00010958,2]
[333675265,1722341446053,-500.0,0.00010958,2]
[333675266,1722341446063,-160.01275252,0.00010958,2]
[333675267,1722341446073,-500.0,0.00010958,2]
[333675268,1722341446082,-500.0,0.00010958,2]
[333675269,1722341446092,-500.0,0.00010958,2]
[333675270,1722341446101,-500.0,0.00010958,2]
[333675271,1722341446111,-500.0,0.00010958,2]
[333675272,1722341446120,-507.87483836,0.00010958,2]
[333675273,1722341446130,-500.0,0.00010958,2]
[333675274,1722341446140,-500.0,0.00010958,2]
[333675275,1722341446149,-498.528776,0.00010958,2]
[333675276,1722341446160,-500.0,0.00010958,2]
[333675277,1722341446170,-451.6739529,0.00010958,2]
[333675278,1722341446179,-500.0,0.00010958,2]
[333675279,1722341446192,-500.0,0.00010958,2]
[333675280,1722341446201,-500.0,0.00010958,2]
[333675281,1722341446214,-619.88652372,0.00010958,2]
[333675282,1722341446223,-645.50250252,0.00010958,2]
[333675283,1722341446232,-500.0,0.00010958,2]
[333675284,1722341446242,-501.09149038,0.00010958,2]
[333675285,1722341446252,-298.84550232,0.00010958,2]
[333675286,1722341446261,-500.0,0.00010958,2]
[333675287,1722341446270,-500.0,0.00010958,2]
[333675288,1722341446280,-500.0,0.00010958,2]
[333675289,1722341446289,-500.0,0.00010958,2]
[333675290,1722341446299,-500.0,0.00010958,2]
[333675291,1722341446309,-500.0,0.00010958,2]
[333675292,1722341446318,-500.0,0.00010958,2]
[333675293,1722341446328,-500.0,0.00010958,2]
[333675294,1722341446337,-500.0,0.00010958,2]
[333675295,1722341446346,-500.0,0.00010958,2]
[333675296,1722341446356,-500.0,0.00010958,2]
[333675297,1722341446366,-500.0,0.00010958,2]
[333675298,1722341446375,-500.0,0.00010958,2]
[333675299,1722341446385,-500.0,0.00010958,2]
[333675300,1722341446395,-500.0,0.00010958,2]
[333675301,1722341446405,-500.0,0.00010958,2]
[333675302,1722341446415,-500.0,0.00010958,2]
[333675303,1722341446424,-500.0,0.00010958,2]
[333675304,1722341446434,-510.13863456,0.00010958,2]
[333675305,1722341446443,-500.0,0.00010958,2]
[333675306,1722341446452,-512.38640263,0.00010958,2]
[333675307,1722341446462,-500.0,0.00010958,2]
[333675308,1722341446472,-500.0,0.00010958,2]
[333675309,1722341446482,-500.0,0.00010958,2]
[333675310,1722341446492,-500.0,0.00010958,2]
[333675311,1722341446501,-500.0,0.00010958,2]
[333675312,1722341446511,-500.0,0.00010958,2]
[333675313,1722341446520,-500.0,0.00010958,2]
[333675314,1722341446529,-500.0,0.00010958,2]
[333675315,1722341446538,-500.0,0.00010958,2]
[333675316,1722341446548,-500.0,0.00010958,2]
[333675317,1722341446557,-500.0,0.00010958,2]
[333675318,1722341446566,-500.0,0.00010958,2]
[333675319,1722341446575,-500.0,0.00010958,2]
[333675320,1722341446585,-500.0,0.00010958,2]
[333675321,1722341446595,-304.40771491,0.00010958,2]
[333675322,1722341446604,-500.0,0.00010958,2]
[333675323,1722341446613,-504.97856787,0.00010958,2]
[333675324,1722341446623,-500.0,0.00010958,2]
[333675325,1722341446632,-507.0713571,0.00010958,2]
[333675326,1722341446642,-500.0,0.00010958,2]
[333675327,1722341446651,-502.03540378,0.00010958,2]
[333675328,1722341446661,-500.0,0.00010958,2]
[333675329,1722341446670,-500.0,0.00010958,2]
[333675330,1722341446679,-500.0,0.00010958,2]
[333675331,1722341446691,-386.45327412,0.00010958,2]
[333675332,1722341446700,-457.0,0.00010958,2]
[333675333,1722341446710,-500.0,0.00010958,2]
[333675334,1722341446720,-500.0,0.00010958,2]
[333675335,1722341446729,-500.0,0.00010958,2]
[333675336,1722341446738,-500.0,0.00010958,2]
[333675337,1722341446748,-500.0,0.00010958,2]
[333675338,1722341446758,-500.0,0.00010958,2]
[333675339,1722341446767,-500.0,0.00010958,2]
[333675340,1722341446776,-333.59645242,0.00010958,2]
[333675341,1722341446785,-500.0,0.00010958,2]
[333675342,1722341446795,-500.0,0.00010958,2]
[333675343,1722341446803,-500.0,0.00010958,2]
[333675344,1722341446813,-510.37629984,0.00010958,2]
[333675345,1722341446823,-500.0,0.00010958,2]
[333675346,1722341446832,-500.0,0.00010958,2]
[333675347,1722341446842,-285.24034575,0.00010958,2]
[333675348,1722341446862,-214.75965425,0.00010958,2]
[333675349,1722341446872,-61.69004989,0.00010958,2]
[333675350,1722341446886,-438.30995011,0.00010958,2]
[333675351,1722341446895,-291.76145222,0.00010958,2]
[333675352,1722341446906,-208.23854778,0.00010958,2]
[333675353,1722341446917,-444.3867476,0.00010958,2]
[333675354,1722341446928,-55.6132524,0.00010958,2]
[333675355,1722341446939,-500.0,0.00010958,2]
[333675356,1722341446949,-500.0,0.00010958,2]
[333675357,1722341446958,-500.0,0.00010958,2]
[333675358,1722341446967,-500.0,0.00010958,2]
[333675359,1722341446976,-370.76045648,0.00010958,2]
[333675360,1722341446985,-500.0,0.00010958,2]
[333675361,1722341446995,-500.0,0.00010958,2]